Cogmind - Beta 17.1 @@@ ROGUE MODE // 2026.08.18 @ 01:50:52 Player: kite Result: Destroyed by D-53 Grenadier with Mini Grenade Launcher Performance ------------- Evolutions (0) 0 Regions Visited (2) 400 Robots Destroyed (24) 120 Value Destroyed (437) 437 Prototype IDs (0) 0 Alien Tech Used (0) 0 Bonus (0) 0 TOTAL SCORE: 957 Bonus ------- None Cogmind --------- Core Integrity 0/250 Matter 230/300 Energy 100/100 System Corruption 4% Temperature Cool (0) Movement Core (50) Location -10/Mines Parts ------- > --- POWER (1) -------- (None) > --- PROPULSION (2) --- (None) > --- UTILITY (2) ------ (None) > --- WEAPON (2) ------- (None) > --- INVENTORY (5) ---- Propulsion Shielding Mace Mace Mace Peak State ------------ > --- POWER ------------ Ion Engine > --- PROPULSION ------- Light Treads Light Treads > --- UTILITY ---------- Medium Storage Unit Core Shielding > --- WEAPON ----------- Mace Mace > --- INVENTORY -------- Light Ion Engine Light Ion Engine Light Treads Light Treads Wheel Compact Wheel Propulsion Shielding Light Assault Rifle Mace [Rating: 10] Favorites ----------- Power Ion Engine Engine Ion Engine Propulsion Light Treads Treads Light Treads Utility Medium Storage Unit Storage Medium Storage Unit Protection Core Shielding Weapon Light Assault Rifle Ballistic Gun Light Assault Rifle Impact Weapon Mace Build | -11 -10 -10 ------- Run | Yrd Mat Min Slots Evolved . | . . . Power . | . . . Propulsion . | . . . Utility . | . . . Weapon . | . . . Parts Attached 14 | 6 8 . Power 1 | 1 . . Engine 1 | 1 . . Core . | . . . Reactor . | . . . Propulsion 4 | 2 2 . Treads 4 | 2 2 . Leg . | . . . Wheel . | . . . Hover . | . . . Flight . | . . . Utility 5 | 1 4 . Device . | . . . Storage 2 | 1 1 . Processor . | . . . Hackware . | . . . Protection 3 | . 3 . Artifact . | . . . Weapon 4 | 2 2 . Energy Gun . | . . . Energy Cannon . | . . . Ballistic Gun 2 | 2 . . Ballistic Cannon . | . . . Launcher . | . . . Special Weapon . | . . . Impact Weapon 2 | . 2 . Slashing Weapon . | . . . Piercing Weapon . | . . . Special Melee Weapon . | . . . Unidentified Prototypes . | . . . Parts Lost 2 | . 2 . Power . | . . . Propulsion 2 | . 2 . Utility . | . . . Weapon . | . . . Highest Loss Streak 1 | . 1 . To Critical Strikes . | . . . Average Backups 6 | 1 6 10 Power 1 | . 1 2 Propulsion 3 | 1 3 4 Utility . | . . 2 Weapon 1 | . 1 2 Tool/Special . | . . . Unused Backups 9 | . 1 8 Power 2 | . . 2 Propulsion 4 | . . 4 Utility . | . . . Weapon 3 | . 1 2 Tool/Special . | . . . Average Slot Usage (%) 96 | . 97 83 Engine 13 | . 14 11 Treads 27 | . 27 23 Storage 15 | . 15 11 Protection 10 | . 10 11 Ballistic Gun 13 | . 14 . Impact Weapon 13 | . 12 23 Peak Build Rating 10 | 6 10 10 Average Rating 7 | 4 8 8 On Entrance 5 | . 6 10 Avg Prop Armor Cover (%) . | . . . Naked Turns 5 | . . 5 Heaviest Build 22 | 12 22 20 Greatest Support 40 | 40 40 40 Greatest Overweight (x) 1 | 1 . . Average Overweight (x) . | . . . Largest Inventory Capacity 10 | 8 10 10 Average Capacity 9 | 7 9 9 Most Carried 10 | 3 10 10 Average Carried 6 | 1 6 9 Final Capacity 10 | 8 10 5 Final Carried 10 | 3 10 4 Class Distribution -------------------- 100% | Mutant Dominant Class ---------------- Mutant | -10/Materials Mutant | -10/Mines Resources | -11 -10 -10 ----------- Run | Yrd Mat Min Matter Collected 315 | 170 145 . Remotely . | . . . Salvage Created 648 | . 648 . Parts 44 | . 44 . Haulers Intercepted 2 | . 2 . Recyclers Shooed . | . . . Parts Field Recycled . | . . . Retrieved Matter . | . . . Parts Self-Destructed . | . . . Prevented . | . . . Parts Restored . | . . . Kills | -11 -10 -10 ------- Run | Yrd Mat Min Combat Hostiles Destroyed 19 | . 19 . Melee 8 | . 8 . Guns 9 | . 9 . Classes Destroyed 4 | . 4 . Worker 3 | . 3 . Hauler 2 | . 2 . Swarmer 9 | . 9 . Grunt 10 | . 10 . Best Kill Streak 6 | . 6 . Combat Bots Only 6 | . 6 . Max Kills in Single Turn 2 | . 2 . Gunslinging . | . . . Exploded . | . . . Melee 1 | . 1 . Uniques/NPCs Destroyed . | . . . Combat | -11 -10 -10 -------- Run | Yrd Mat Min Hostile Shots Fired 83 | . 79 4 Missed 22 | . 22 . Hits 61 | . 57 4 Projectile 61 | . 57 4 AOE 4 | . . 4 Damage Taken 751 | . 588 163 Core 250 | . 87 163 Absorbed by Shields . | . . . Redirected to Shielding 17 | . 17 . Core Remaining (%) 100 | 100 . . Volleys Fired 29 | . 29 . Largest 2 | . 2 . Hottest 40 | . 40 . Shots Fired 58 | . 58 . Gun 58 | . 58 . Cannon . | . . . Launcher . | . . . Special . | . . . Kinetic 58 | . 58 . Thermal . | . . . Explosive . | . . . Electromagnetic . | . . . Robot Hit Streak 8 | . 8 . Robot Miss Streak 4 | . 4 . Penetration Max . | . . . Secondary Targets 1 | . 1 . Max Gunslinging Chain 1 | . 1 . Shots Hit Robots 55 | . 55 . Core Hits 26 | . 26 . Critical Kills 2 | . 2 . Critical Parts Destroyed 5 | . 5 . Critical Strikes 7 | . 7 . Smash 7 | . 7 . Melee Attacks 36 | . 35 1 Impact 36 | . 35 1 Slashing . | . . . Piercing . | . . . Sneak Attacks 3 | . 3 . Combat Hostiles . | . . . Follow-up Attacks 5 | . 5 . Damage Inflicted 1185 | . 1185 . Guns 270 | . 270 . Cannons . | . . . Explosions . | . . . Melee 913 | . 913 . Ramming 2 | . 2 . Kinetic 270 | . 270 . Thermal . | . . . Explosive . | . . . Electromagnetic . | . . . Impact 913 | . 913 . Slashing . | . . . Piercing . | . . . Highest Corruption 4 | . 4 4 Average Corruption 2 | . 2 4 Corruption Purged . | . . . Corruption Blocked . | . . . Effects 8 | . 7 1 Message Errors 4 | . 3 1 Energy Discharges 2 | . 2 . Data Loss (minor) 1 | . 1 . Alerts 1 | . 1 . Overload Shots . | . . . Overflow Damage 227 | . 227 . Projectiles . | . . . Explosions . | . . . Melee 227 | . 227 . Knockbacks 3 | . 3 . Impact 3 | . 3 . Kinetic . | . . . Secondary . | . . . Self-Inflicted Damage . | . . . Shots . | . . . Rammed 1 | . 1 . Targets Rammed 1 | . 1 . Kicked . | . . . Crushed . | . . . Highest Temperature 18 | . 18 . Average Temperature 8 | . 8 . Received Heat Transfer 204 | . 204 . Siege Activations . | . . . Martial Activations . | . . . Shielding Activations . | . . . Robots Disrupted . | . . . Combat Hostiles . | . . . Robots Corrupted 3 | . 3 . Combat Hostiles 2 | . 2 . Parts Fried 4 | . 4 . Impact Corruptions 9 | . 9 . Robots Melted . | . . . Combat Hostiles . | . . . Parts Melted . | . . . Heat Transferred . | . . . Parts Sabotaged . | . . . Parts Stolen . | . . . Parts Stripped . | . . . Power Chain Reactions . | . . . Alert | -11 -10 -10 ------- Run | Yrd Mat Min Maximum Alert Level 1 | . 1 . Low Security (%) 71 | 100 66 100 Level 1 28 | . 33 . Level 2 . | . . . Level 3 . | . . . Level 4 . | . . . Level 5 . | . . . High Security . | . . . Max Security . | . . . Peak Influence 324 | . 324 113 Initial 112 | . . 112 Average 114 | . 127 104 Influence Increases 547 | . 546 1 Destroy 0b10 Robot/C 380 | . 380 . Destroy 0b10 Robot/NC 25 | . 25 . Destroy Leader 74 | . 74 . Successful Hack 7 | . 7 . Select Force Hacks 30 | . 30 . Destroy Structure 1 | . . 1 Lose Combat Pursuer 30 | . 30 . Influence Decreases 454 | . 257 197 Entered New Map 177 | . . 177 Time Decay 257 | . 237 20 Lost Part 20 | . 20 . Squads Dispatched 4 | . 4 . Investigation 4 | . 4 . Extermination . | . . . Reinforcement . | . . . Assault . | . . . Garrison . | . . . Intercept . | . . . Searches Triggered . | . . . Construction Impeded . | . . . Haulers Reinforced . | . . . Active Scanning Responses . | . . . Cargo Convoy Interrupts . | . . . Stealth | -11 -10 -10 --------- Run | Yrd Mat Min Distress Signals . | . . . Communications Jammed . | . . . Distress Signals . | . . . Times Spotted 29 | . 27 2 Peak Tracking Total 4 | . 4 4 Tactical Retreats 2 | . 2 . Traps | -11 -10 -10 ------- Run | Yrd Mat Min Traps Triggered 2 | . 2 . Indirectly . | . . . Trap Hack Attempts . | . . . Triggered . | . . . Disarmed . | . . . Reprogrammed . | . . . Reused . | . . . Traps Extracted . | . . . Installed . | . . . Triggered . | . . . Machines | -11 -10 -10 ---------- Run | Yrd Mat Min Machines Disabled . | . . . Max in Single Turn . | . . . Machines Repaired . | . . . Machines Dismantled . | . . . Machines Sabotaged . | . . . Overloaded Fab Kills . | . . . Hacking | -11 -10 -10 --------- Run | Yrd Mat Min Machines Accessed 4 | . 4 . Terminals 3 | . 3 . Fabricators . | . . . Repair Stations . | . . . Recycling Units 1 | . 1 . Scanalyzers . | . . . Garrison Access . | . . . Total Hacks 10 | . 10 . Successful 2 | . 2 . Failed 8 | . 8 . Catastrophic 2 | . 2 . Database Lockouts . | . . . Manual 10 | . 10 . Terminals 9 | . 9 . Fabricators . | . . . Repair Stations . | . . . Recycling Units 1 | . 1 . Scanalyzers . | . . . Garrison Access . | . . . Terminal Hacks 1 | . 1 . Part Schematic 1 | . 1 . Fabricator Hacks . | . . . Repair Station Hacks . | . . . Recycling Unit Hacks . | . . . Scanalyzer . | . . . Garrison Access Hacks . | . . . Unauthorized Hacks 1 | . 1 . Terminals . | . . . Fabricators . | . . . Repair Stations . | . . . Recycling Units 1 | . 1 . Tunnel 1 | . 1 . Scanalyzers . | . . . Garrison Access . | . . . Data Cores Recovered . | . . . Used . | . . . Hacking Detections 3 | . 3 . Full Trace Events 3 | . 3 . Feedback Events 1 | . 1 . Corruption 1 | . 1 . Feedback Blocked . | . . . Robot Schematics Acquired . | . . . Robots Built . | . . . Authchips . | . . . Time . | . . . Total Robot Build Rating . | . . . Part Schematics Acquired 1 | . 1 . Parts Built . | . . . Authchips . | . . . Time . | . . . Total Part Build Rating . | . . . Part Studies Acquired . | . . . Parts Repaired . | . . . Time . | . . . Parts Recycled . | . . . Recycled Matter . | . . . Retrieved Matter . | . . . Retrieved Components . | . . . Parts Scanalyzed . | . . . Part Schematics Acquired . | . . . Parts Damaged . | . . . Bothacking | -11 -10 -10 ------------ Run | Yrd Mat Min Used RIF Installer . | . . . Robots Hacked . | . . . Non-combat . | . . . Combat . | . . . Robot Hacks Applied . | . . . Relay Couplers Released . | . . . Fabnet Peak Effective % . | . . . Robots Rewired . | . . . Allies Hacked . | . . . Hacks Repelled . | . . . Allies | -11 -10 -10 -------- Run | Yrd Mat Min Total Allies . | . . . Largest Group . | . . . Highest-Rated Group . | . . . Highest-Rated Ally . | . . . Total Orders . | . . . Ally Attacks . | . . . Total Damage . | . . . Kills . | . . . Allies Corrupted . | . . . Allies Melted . | . . . Intel | -11 -10 -10 ------- Run | Yrd Mat Min Active Infowar (turns) . | . . . Robot Analysis Total . | . . . Derelict Logs Recovered . | . . . Drone Launches . | . . . Drone Recoveries . | . . . Exploration | -11 -10 -10 ------------- Run | Yrd Mat Min Turns Passed 899 | 89 762 48 Spaces Moved 410 | 50 346 14 Core 5 | 3 . 2 Treads 405 | 47 346 12 Legs . | . . . Wheels . | . . . Hover . | . . . Flight . | . . . Fastest Speed 50 | 50 160 50 Average Speed 158 | 155 160 144 Slowest Speed 160 | 160 160 160 Overloaded Moves . | . . . Propulsion Burnouts . | . . . Robots Hopped . | . . . Potential Cave-ins . | . . . Cave-ins Triggered . | . . . Exploration Rate (%) 23 | 3 61 5 Regions Visited 2 Branch Regions 1 Pre-discovered Areas 1 | . 1 . Known Exits Taken . | . . . Unknown Exits Taken 2 | 1 1 . Scrap Searched . | . . . Spaces Dug 1 | . . 1 Terrain Destroyed 1 | . . 1 Melee 1 | . . 1 Projectile . | . . . AOE . | . . . Terrain Rammed . | . . . Walls Destroyed . | . . . Machines Disabled . | . . . Actions | -11 -10 -10 --------- Run | Yrd Mat Min Total 555 | 58 456 41 Wait 50 | . 29 21 Move 408 | 49 345 14 Hop . | . . . Pick Up 16 | 3 11 2 Fast Attach 10 | 6 4 . Attach 3 | . 3 . Detach . | . . . Swap 1 | . 1 . Drop 8 | . 5 3 Fire 29 | . 29 . Melee 29 | . 28 1 Ram . | . . . Kick . | . . . Crush 1 | . 1 . Escape Stasis . | . . . Rewire . | . . . Trap . | . . . Miscellaneous . | . . . Route ------- -11/Scrapyard -10/Materials (discovered 3 exits: [*Mat] / [*Min] / [*Sub]) -10/Mines History --------- Turn | Location | Event 7 | -11/Scrapyard | Discovered new exit (range 15) 90 | -11/Scrapyard | Entered Materials 234 | -10/Materials | Discovered new exit (range 16) 310 | -10/Materials | Build established: Mutant 648 | -10/Materials | Discovered new exit (range 16) 671 | -10/Materials | Discovered new exit (range 6) 852 | -10/Materials | Entered Mines 853 | -10/Mines | Assembled infested the area 895 | -10/Mines | Released all parts (7) 899 | -10/Mines | Core integrity fell below 50% 900 | -10/Mines | Destroyed by D-53 Grenadier with Mini Grenade Launcher Last Messages --------------- 00835_ K-01 Serf cleans the Machine. LOCATION=UNKNOWN GOAL=ESCAPE 00853_ ALERT: Infestation in the mines, dispatching Demolisher response squad. 00853_ =1RMX4LQ 00895_ Released Lgt. Treads. 00895_ Released Mace. 00895_ Released Med. Storage Unit. 00895_ Released Ion Engine. 00895_ Released Core Shielding. 00895_ Released Mace. 00896_ Dropped Corrupted Lgt. Treads. 00896_ Acquired Mace. 00898_ Dropped Com. Wheel. 00898_ Dropped Med. Matter Pod. 00899_ Acquired Mace. Map ----- +----------------------------------------------------+ | | | | | | | | | | | | | | | | | ?????????????????????????????? | | ?????????????????????????????? | | ?????????????????????????????? | | ?????????????????????????????? | | ?????????????????????????????? | | ?????????????????????????????? | | ?????????????????????????????? | | ?????????????????????????????? | | ?????????????????????????????? | | ?????????????????????????????? | | ?????????????????????????????? | | ?????????????????????????????? | | ??????????????????????#######? | | ??????????????????????# # ## | | ????????????????????### = # | | ???????????????????## / ! # | | ??????????????????## !== | | ??????????????????# @! # | | ???????????????#### = # | | ???????????????# # | | ???????????????# !d!! # # | | ???????????????# d!!! ?#### | | ????????????? !! ! ##????? | | ??????????? % # !!! #?????? | | ????????? "?# $ #?????? | | ????????## #??#### ?????? | | ?????????# ??????? ?????? | | ????????????????? #?????? | | ????????????????# ##?????? | | ????????????????## ???????? | | ?????????????????# ???????? | | ?????????????????## ???????? | | ??????????????????## ???????? | | ???????????????????? ???????? | | ???????????????????? ???????? | | ?????????????????????????????? | | ?????????????????????????????? | | ?????????????????????????????? | | ?????????????????????????????? | | ?????????????????????????????? | | ?????????????????????????????? | | ?????????????????????????????? | +----------------------------------------------------+ Best States ------------- Heat Dissipation 25 Energy Generation 10 Energy Capacity 250 Matter Stores 240 Matter Capacity 300 Sight Range 16 Terrain Scan Density 10 Core Shielding 20 Propulsion Shielding 33 Utility Shielding 33 Evasion (%) 40 Recoil Reduction 2 Item Schematics ----------------- Cargo Storage Unit | -10/Materials | Hacked Robot Schematics ------------------ None Fabricated ------------ Nothing Repaired ---------- Nothing Studied --------- None Alien Tech Used ----------------- None Achievements -------------- None Challenges ------------ None Game ------ Seed DirectedBoreAutohacker Manual? 0 Play Time 00:04:06 Cumulative 554.8 hours Start 2026.08.18 @ 01:47:09 End 2026.08.18 @ 01:50:52 Sessions 1 Manual Loads 0 Difficulty Rogue Special Mode None Game No. 475 Rogue 475 Adventurer 0 Explorer 0 Win Type - Total 15 Types 8/0/3/1/0/0/0/1/0/2 Lore% 66 Gallery% 71 Achievement% 68 Wizard Run 0 Options --------- Layout 1 ASCII 0 Keyboard 0 Movement Mouse Keybinds 0 Fullscreen 2 Font 24/Cog Map View 25x17 Zoom Use 72% Tactical HUD 1 Map Filters NONE Filters NONE Steam 1 RUN: c25d308a-0b58-4516-9e9d-1de2e106d0a5